bitfinex/quotes_BTCUSD_20241229
["timestamp","ask_amount","ask_price","bid_price","bid_amount"]
[1735442444073,0.11673079,95226.0,95225.0,0.16159922]
[1735442462139,0.10025515,95226.0,95225.0,0.16159922]
[1735442463427,0.11673151,95226.0,95225.0,0.16159922]
[1735442471117,0.11673151,95226.0,95225.0,0.17775914]
[1735442473490,0.11673151,95226.0,95225.0,0.16159922]
[1735442473930,0.10025515,95226.0,95225.0,0.16159922]
[1735442476988,0.11673136,95226.0,95225.0,0.16159922]
[1735442478858,0.33584819,95231.0,95225.0,0.16159922]
[1735442479062,0.00578887,95226.0,95225.0,0.16159922]
[1735442479269,0.01647619,95226.0,95225.0,0.16159922]
[1735442479550,0.02226506,95226.0,95225.0,0.16159922]
[1735442480021,0.01647619,95226.0,95225.0,0.16159922]
[1735442480919,0.01647619,95226.0,95225.0,0.15759922]
[1735442481161,0.01647619,95226.0,95225.0,0.16059922]
[1735442481377,0.01647619,95226.0,95225.0,0.16735914]
[1735442481590,0.01647619,95226.0,95225.0,0.15759922]
[1735442482027,0.01647619,95226.0,95225.0,0.16159922]
[1735442482228,0.0824,95232.0,95225.0,0.15259922]
[1735442482488,0.01647621,95226.0,95225.0,0.14859922]
[1735442482703,0.01647621,95226.0,95225.0,0.15259922]
[1735442482899,0.02226649,95226.0,95225.0,0.15259922]
[1735442483347,0.01647621,95226.0,95225.0,0.15259922]
[1735442483851,0.01647621,95226.0,95225.0,0.16159922]
[1735442484271,0.01647621,95226.0,95225.0,0.15759922]
[1735442484577,0.01664701,95226.0,95225.0,0.15759922]
[1735442484798,0.01664701,95226.0,95225.0,0.16059922]
[1735442485229,0.01664701,95226.0,95225.0,0.15759922]
[1735442485637,0.01664701,95226.0,95225.0,0.16159922]
[1735442486878,0.01664701,95226.0,95225.0,0.15259922]
[1735442487082,0.01664701,95226.0,95225.0,0.16159922]
[1735442487433,0.01664701,95226.0,95225.0,0.15759922]
[1735442487795,0.01664701,95226.0,95225.0,0.16159922]
[1735442489388,0.01664701,95226.0,95225.0,0.15759922]
[1735442490634,0.01664701,95226.0,95225.0,0.14859922]
[1735442490845,0.01664701,95226.0,95225.0,0.15259922]
[1735442491270,0.01664701,95226.0,95225.0,0.15759922]
[1735442491522,0.01664701,95226.0,95225.0,0.14859922]
[1735442491739,0.01664701,95226.0,95225.0,0.16159922]
[1735442491947,0.01664701,95226.0,95225.0,0.15259922]
[1735442492156,0.0001708,95226.0,95225.0,0.14859922]
[1735442492364,0.0001708,95226.0,95225.0,0.16159922]
[1735442492755,0.01664692,95226.0,95225.0,0.16159922]
[1735442495845,0.0001708,95226.0,95225.0,0.16159922]
[1735442496531,0.07893788,95232.0,95225.0,0.16159922]
[1735442496745,0.122559,95231.0,95226.0,0.01615992]
[1735442496959,0.1283494,95231.0,95226.0,0.01615992]
[1735442497277,0.0057904,95231.0,95230.0,0.0840667]
[1735442497494,0.1293494,95231.0,95230.0,0.0840667]
[1735442498616,0.1293494,95231.0,95230.0,0.0930667]
[1735442498829,0.14582428,95231.0,95230.0,0.0930667]
[1735442499323,0.14582428,95231.0,95230.0,0.15751382]
[1735442500174,0.14582428,95231.0,95230.0,0.16051382]
[1735442503234,0.0065169,95231.0,95230.0,0.16051382]
[1735442503645,0.18744586,95238.0,95230.0,0.16051382]
[1735442503861,3.628804,95237.0,95230.0,0.16051382]
[1735442504066,0.0065226,95237.0,95236.0,0.0840667]
[1735442504508,3.628804,95237.0,95236.0,0.0840667]
[1735442504711,3.628804,95243.0,95236.0,0.0840667]
[1735442504921,0.0065226,95237.0,95236.0,0.0840667]
[1735442505130,3.628804,95237.0,95236.0,0.0840667]
[1735442505315,0.0065226,95237.0,95236.0,0.0840667]
[1735442505529,3.6353266,95237.0,95236.0,0.0840667]
[1735442505732,3.628804,95237.0,95236.0,0.0840667]
[1735442505941,0.0065226,95237.0,95236.0,0.14851382]
[1735442506146,0.0792,95238.0,95236.0,0.14851382]
[1735442506351,0.0792,95238.0,95237.0,0.06444712]
[1735442506839,3.72447881,95238.0,95237.0,0.06444712]
[1735442507034,3.72447881,95238.0,95237.0,0.14851382]
[1735442507471,3.72447881,95238.0,95237.0,0.15051382]
[1735442507674,3.72447881,95238.0,95237.0,0.15751382]
[1735442508013,3.72464961,95238.0,95237.0,0.15551382]
[1735442508423,3.72464961,95238.0,95237.0,0.15751382]
[1735442509683,3.72464961,95238.0,95237.0,0.15551382]
[1735442510131,3.72464961,95238.0,95237.0,0.15751382]
[1735442510562,3.72464961,95238.0,95237.0,0.15551382]
[1735442510774,3.72464961,95238.0,95237.0,0.15751382]
[1735442510992,3.73117331,95238.0,95237.0,0.15751382]
[1735442511224,3.5014335,95238.0,95237.0,0.15751382]
[1735442511442,3.51790844,95238.0,95237.0,0.15751382]
[1735442514757,3.51790844,95238.0,95237.0,0.15551382]
[1735442516053,3.51790844,95238.0,95237.0,0.15751382]
[1735442516473,3.51790844,95238.0,95237.0,0.14851382]
[1735442516693,3.51790844,95238.0,95237.0,0.15651382]
[1735442517167,3.51790844,95238.0,95237.0,0.15051382]
[1735442517413,3.51790844,95238.0,95237.0,0.15751382]
[1735442519415,3.51790844,95238.0,95237.0,0.15759922]
[1735442522327,3.5014335,95238.0,95237.0,0.15759922]
[1735442524531,3.229121,95238.0,95237.0,0.15759922]
[1735442524778,3.23673198,95238.0,95237.0,0.15759922]
[1735442525523,3.25320677,95238.0,95237.0,0.15759922]
[1735442531635,3.25337757,95238.0,95237.0,0.15759922]
[1735442534000,3.25337757,95238.0,95237.0,0.15559922]
[1735442534412,3.25337757,95238.0,95237.0,0.14859922]
[1735442534721,3.25337757,95238.0,95237.0,0.15659922]
[1735442535531,3.25337757,95238.0,95237.0,0.15959922]
[1735442535945,3.25337757,95238.0,95237.0,0.14859922]
[1735442536387,3.25337757,95238.0,95237.0,0.15959922]
[1735442536801,3.25337757,95238.0,95237.0,0.15659922]
[1735442537015,3.23690278,95238.0,95237.0,0.15959922]
[1735442537667,3.23690278,95238.0,95237.0,0.15159922]
[1735442537872,3.23690278,95238.0,95237.0,0.15959922]
[1735442538221,3.23690278,95238.0,95237.0,0.15159922]
[1735442538433,3.23690278,95238.0,95237.0,0.16059922]
[1735442538842,3.23690278,95238.0,95237.0,0.15759922]
[1735442539280,3.23690278,95238.0,95237.0,0.16059922]
[1735442539599,3.23690278,95238.0,95237.0,0.15759922]
[1735442540045,3.25337851,95238.0,95237.0,0.16159922]
[1735442546390,3.23690278,95238.0,95237.0,0.16159922]
[1735442549357,3.25337849,95238.0,95237.0,0.16159922]
[1735442550639,3.49012236,95238.0,95237.0,0.16159922]
[1735442551043,3.49012236,95238.0,95237.0,0.15759922]
[1735442551296,3.49012236,95238.0,95237.0,0.14859922]
[1735442551519,3.49012236,95238.0,95237.0,0.16059922]
[1735442551855,3.49012236,95238.0,95237.0,0.15759922]
[1735442552058,3.49012236,95238.0,95237.0,0.16059922]
[1735442558050,3.25337849,95238.0,95237.0,0.16059922]
[1735442564464,3.23690278,95238.0,95237.0,0.16059922]
[1735442567610,3.25337843,95238.0,95237.0,0.16059922]
[1735442575228,3.23690278,95238.0,95237.0,0.16059922]
[1735442575815,3.23640278,95238.0,95237.0,0.16059922]
[1735442576158,3.25287847,95238.0,95237.0,0.16059922]
[1735442576929,0.26050104,95238.0,95237.0,0.16059922]
[1735442577149,3.48962204,95238.0,95237.0,0.16059922]
[1735442580447,3.20074473,95238.0,95237.0,0.16059922]
[1735442580676,3.2070795,95238.0,95237.0,0.16059922]
[1735442580895,3.22355517,95238.0,95237.0,0.16059922]
[1735442583454,3.22355517,95238.0,95237.0,0.15845922]
[1735442585034,3.2070795,95238.0,95237.0,0.15845922]
[1735442588027,3.22355531,95238.0,95237.0,0.15845922]
[1735442591115,3.22372611,95238.0,95237.0,0.15845922]
[1735442597148,3.2072503,95238.0,95237.0,0.15845922]
[1735442599495,3.44386178,95238.0,95237.0,0.15845922]
[1735442599964,3.46033757,95238.0,95237.0,0.15845922]
[1735442600501,3.46033757,95238.0,95237.0,0.0120854]
[1735442600740,3.35142609,95238.0,95237.0,0.0120854]
[1735442600980,3.35142609,95238.0,95237.0,0.00226124]
[1735442601471,0.1277,95237.0,95225.0,8.54e-05]
[1735442601677,3.328445,95237.0,95225.0,8.54e-05]
[1735442601908,3.33663725,95236.0,95225.0,8.54e-05]
[1735442602110,0.1254,95235.0,95225.0,8.54e-05]
[1735442602342,0.0803,95234.0,95225.0,8.54e-05]
[1735442602567,0.28369213,95232.0,95225.0,8.54e-05]
[1735442602826,3.281045,95231.0,95225.0,8.54e-05]
[1735442603260,3.200745,95230.0,95225.0,8.54e-05]
[1735442603461,3.326145,95229.0,95225.0,8.54e-05]
[1735442603683,3.200745,95228.0,95225.0,8.54e-05]
[1735442603902,3.200745,95227.0,95225.0,8.54e-05]
[1735442604124,3.200745,95226.0,95225.0,8.54e-05]
[1735442604620,3.20793526,95226.0,95225.0,8.54e-05]
[1735442604848,3.20793526,95226.0,95224.0,0.0729875]
[1735442605068,3.200745,95225.0,95224.0,0.0729875]
[1735442605787,3.44419436,95225.0,95224.0,0.0729875]
[1735442606202,3.44419436,95225.0,95224.0,0.0739875]
[1735442606532,3.44419436,95225.0,95224.0,0.003]
[1735442606738,3.20793526,95225.0,95224.0,0.003]
[1735442607321,3.22441419,95225.0,95224.0,0.003]
[1735442607682,3.22541419,95225.0,95224.0,0.003]
[1735442607892,3.22541419,95225.0,95223.0,0.0729875]
[1735442608089,3.200745,95224.0,95223.0,0.0729875]
[1735442608710,3.20793526,95224.0,95223.0,0.0729875]
[1735442610152,3.20893526,95224.0,95223.0,0.0729875]
[1735442611202,1.65287326,95224.0,95223.0,0.0729875]
[1735442611951,1.65187326,95224.0,95223.0,0.0729875]
[1735442612463,1.65187326,95224.0,95223.0,0.0739875]
[1735442612678,1.65187326,95224.0,95223.0,0.0729875]
[1735442612886,1.65187326,95224.0,95223.0,0.0749875]
[1735442613498,1.65187326,95224.0,95223.0,0.0750729]
[1735442614188,1.65187326,95224.0,95223.0,0.0730729]
[1735442614435,1.65187326,95224.0,95223.0,0.0740729]
[1735442614668,1.65187326,95224.0,95223.0,0.0010854]
[1735442614887,1.65187326,95224.0,95223.0,0.0740729]
[1735442616185,1.66835197,95224.0,95223.0,0.0740729]
[1735442616391,1.66835197,95224.0,95223.0,0.13638002]
[1735442617165,1.66835197,95224.0,95223.0,0.13538002]
[1735442617365,1.66835197,95224.0,95223.0,0.13638002]
[1735442617529,1.66835197,95224.0,95223.0,0.13938002]
[1735442618339,1.47526697,95224.0,95223.0,0.13938002]
[1735442624236,0.02366897,95224.0,95223.0,0.13938002]
[1735442625035,0.02383977,95224.0,95223.0,0.13938002]
[1735442625234,2.33411477,95224.0,95223.0,0.13938002]
[1735442625435,2.24608577,95224.0,95223.0,0.13938002]
[1735442626068,2.22960706,95224.0,95223.0,0.13938002]
[1735442629030,2.24608577,95224.0,95223.0,0.0770729]
[1735442629463,2.24608577,95224.0,95223.0,0.13938002]
[1735442629877,2.24375519,95224.0,95223.0,0.13938002]
[1735442630265,2.24375519,95224.0,95223.0,0.0770729]
[1735442630472,2.24375519,95224.0,95223.0,0.13938002]
[1735442631195,2.24375519,95224.0,95223.0,0.0770729]
[1735442631405,2.24375519,95224.0,95223.0,0.13938002]
[1735442631608,2.24375519,95224.0,95223.0,0.0770729]
[1735442632311,2.24375519,95224.0,95223.0,0.13938002]
[1735442632530,2.24375519,95224.0,95223.0,0.0040854]
[1735442633196,2.24375519,95224.0,95223.0,0.0030854]
[1735442633636,2.24375519,95224.0,95223.0,8.54e-05]
[1735442633851,2.22727648,95224.0,95223.0,8.54e-05]
[1735442634067,2.22727648,95224.0,95223.0,0.0010854]
[1735442636251,2.24375565,95224.0,95223.0,0.0010854]
[1735442637549,2.37335565,95224.0,95223.0,0.0010854]
[1735442637813,2.50438266,95224.0,95223.0,0.0010854]
[1735442638015,2.76339229,95224.0,95223.0,0.0010854]
[1735442638234,2.76339229,95224.0,95223.0,8.54e-05]
[1735442638650,2.77239229,95224.0,95223.0,0.0010854]
[1735442638907,2.77239229,95224.0,95223.0,8.54e-05]
[1735442639120,2.78139229,95224.0,95223.0,0.0010854]
[1735442639338,2.54532372,95224.0,95223.0,0.0010854]
[1735442639996,2.54632372,95224.0,95223.0,0.0010854]
[1735442640446,2.52732372,95224.0,95223.0,8.54e-05]
[1735442640670,3.06240372,95224.0,95223.0,8.54e-05]
[1735442640886,3.05340372,95224.0,95223.0,8.54e-05]
[1735442641110,3.06240372,95224.0,95223.0,8.54e-05]
[1735442641535,3.05754404,95224.0,95223.0,8.54e-05]
[1735442641948,3.06654404,95224.0,95223.0,8.54e-05]
[1735442642184,3.04754404,95224.0,95223.0,8.54e-05]
[1735442642393,3.04704404,95224.0,95223.0,8.54e-05]
[1735442642601,3.05204404,95224.0,95223.0,8.54e-05]
[1735442643033,3.47383235,95224.0,95223.0,8.54e-05]
[1735442643512,3.40009355,95224.0,95223.0,8.54e-05]
[1735442643750,3.25870717,95224.0,95223.0,8.54e-05]
[1735442644179,2.94914224,95224.0,95223.0,8.54e-05]
[1735442644606,0.82264807,95224.0,95223.0,8.54e-05]
[1735442645012,3.20493901,95224.0,95223.0,8.54e-05]
[1735442645228,3.06186301,95224.0,95223.0,8.54e-05]
[1735442645551,3.08480407,95224.0,95223.0,8.54e-05]
[1735442645955,3.40331116,95224.0,95223.0,8.54e-05]
[1735442646722,3.34219716,95224.0,95223.0,8.54e-05]
[1735442647560,3.2785889,95224.0,95223.0,8.54e-05]
[1735442647879,2.96008181,95224.0,95223.0,8.54e-05]
[1735442648394,2.96025261,95224.0,95223.0,8.54e-05]
[1735442649443,3.27880052,95224.0,95223.0,8.54e-05]
[1735442650474,2.96025261,95224.0,95223.0,8.54e-05]
[1735442652018,2.89554723,95224.0,95223.0,8.54e-05]
[1735442652230,1.8380886,95224.0,95223.0,8.54e-05]
[1735442652891,1.8330886,95224.0,95223.0,8.54e-05]
[1735442653102,1.81014754,95224.0,95223.0,8.54e-05]
[1735442653308,1.80614754,95224.0,95223.0,8.54e-05]
[1735442653727,1.80714754,95224.0,95223.0,8.54e-05]
[1735442655035,1.80214754,95224.0,95223.0,8.54e-05]
[1735442655447,1.80314754,95224.0,95223.0,8.54e-05]
[1735442657458,1.90637092,95224.0,95223.0,8.54e-05]
[1735442662123,0.64695692,95224.0,95223.0,8.54e-05]
[1735442662360,2.61037492,95224.0,95223.0,8.54e-05]
[1735442663079,2.51458592,95224.0,95223.0,8.54e-05]
[1735442665370,2.49610318,95224.0,95223.0,8.54e-05]
[1735442665590,2.48249418,95224.0,95223.0,8.54e-05]
[1735442665797,2.98449418,95224.0,95223.0,8.54e-05]
[1735442666467,2.94248118,95224.0,95223.0,8.54e-05]
[1735442667778,2.94348118,95224.0,95223.0,8.54e-05]
[1735442668147,2.94448118,95224.0,95223.0,8.54e-05]
[1735442668340,2.96096261,95224.0,95223.0,8.54e-05]
[1735442668540,2.95996261,95224.0,95223.0,8.54e-05]
[1735442668904,2.96096261,95224.0,95223.0,8.54e-05]
[1735442669066,2.95896261,95224.0,95223.0,8.54e-05]
[1735442669269,2.95996261,95224.0,95223.0,8.54e-05]
[1735442669901,2.95896261,95224.0,95223.0,8.54e-05]
[1735442670375,2.92383761,95224.0,95223.0,8.54e-05]
[1735442670729,2.92283761,95224.0,95223.0,8.54e-05]
[1735442671140,2.94772001,95224.0,95223.0,8.54e-05]
[1735442671684,2.94672001,95224.0,95223.0,8.54e-05]
[1735442672102,2.94772001,95224.0,95223.0,8.54e-05]
[1735442672717,2.93123858,95224.0,95223.0,8.54e-05]
[1735442673757,2.93023858,95224.0,95223.0,8.54e-05]
[1735442674211,2.93123858,95224.0,95223.0,8.54e-05]
[1735442674412,2.93023858,95224.0,95223.0,8.54e-05]
[1735442674616,2.93223858,95224.0,95223.0,8.54e-05]
[1735442675027,2.93123858,95224.0,95223.0,8.54e-05]
[1735442675461,2.93223858,95224.0,95223.0,8.54e-05]
[1735442675892,2.94872029,95224.0,95223.0,8.54e-05]
[1735442679475,3.23185873,95224.0,95223.0,8.54e-05]
[1735442681000,3.23044262,95224.0,95223.0,8.54e-05]
[1735442682178,3.22944262,95224.0,95223.0,8.54e-05]
[1735442682382,3.23044262,95224.0,95223.0,8.54e-05]
[1735442682674,3.21396091,95224.0,95223.0,8.54e-05]
[1735442683100,3.21196091,95224.0,95223.0,8.54e-05]
[1735442683429,3.21296091,95224.0,95223.0,8.54e-05]
[1735442683633,3.21196091,95224.0,95223.0,8.54e-05]
[1735442683841,3.21296091,95224.0,95223.0,8.54e-05]
[1735442684271,3.21196091,95224.0,95223.0,8.54e-05]
[1735442684477,3.21096091,95224.0,95223.0,8.54e-05]
[1735442684684,3.02089275,95224.0,95223.0,8.54e-05]
[1735442685094,3.01989275,95224.0,95223.0,8.54e-05]
[1735442685287,2.73675431,95224.0,95223.0,8.54e-05]
[1735442685540,2.71387191,95224.0,95223.0,8.54e-05]
[1735442685755,2.71487191,95224.0,95223.0,8.54e-05]
[1735442685960,2.73135338,95224.0,95223.0,8.54e-05]
[1735442686734,3.61394291,95224.0,95223.0,8.54e-05]
[1735442687303,3.60229791,95224.0,95223.0,8.54e-05]
[1735442688108,3.46966991,95224.0,95223.0,8.54e-05]
[1735442688737,3.20012991,95224.0,95223.0,8.54e-05]
[1735442689581,3.1140253,95224.0,95223.0,8.54e-05]
[1735442692747,3.09754391,95224.0,95223.0,8.54e-05]
[1735442695248,3.11979706,95224.0,95223.0,8.54e-05]
[1735442695882,3.13627845,95224.0,95223.0,8.54e-05]
[1735442696326,3.45482636,95224.0,95223.0,8.54e-05]
[1735442696480,3.38550236,95224.0,95223.0,8.54e-05]
[1735442697004,3.06695445,95224.0,95223.0,8.54e-05]
[1735442698768,0.97572445,95224.0,95223.0,8.54e-05]
[1735442698966,3.12154045,95224.0,95223.0,8.54e-05]
[1735442699081,3.15783045,95224.0,95223.0,8.54e-05]
[1735442699304,3.1249323,95224.0,95223.0,8.54e-05]
[1735442699544,3.14718545,95224.0,95223.0,8.54e-05]
[1735442700313,3.12739845,95224.0,95223.0,8.54e-05]
[1735442701042,2.97019345,95224.0,95223.0,8.54e-05]
[1735442701236,2.86697007,95224.0,95223.0,8.54e-05]
[1735442702079,1.80253168,95224.0,95223.0,0.14119252]
[1735442702286,1.80153168,95224.0,95223.0,0.14119252]
[1735442702499,1.78027853,95224.0,95223.0,0.14119252]
[1735442702908,1.77927853,95224.0,95223.0,0.14119252]
[1735442703543,1.77927853,95224.0,95223.0,0.14219252]
[1735442703989,1.78027853,95224.0,95223.0,0.14319252]
[1735442704193,2.0643943,95224.0,95223.0,0.14319252]
[1735442704851,1.7624303,95224.0,95223.0,0.14319252]
[1735442705063,1.77890953,95224.0,95223.0,0.14319252]
[1735442705269,1.49479376,95224.0,95223.0,0.14319252]
[1735442707042,1.73139288,95224.0,95223.0,0.14319252]
[1735442708938,1.49479376,95224.0,95223.0,0.14319252]
[1735442712946,1.47831453,95224.0,95223.0,0.14319252]
[1735442713166,1.47831453,95224.0,95223.0,0.0020854]
[1735442716108,1.49479478,95224.0,95223.0,0.0020854]
[1735442716650,1.23171828,95224.0,95223.0,0.0020854]
[1735442722777,1.21523803,95224.0,95223.0,0.0020854]
[1735442725997,1.2317181,95224.0,95223.0,0.0020854]
[1735442726201,1.2307181,95224.0,95223.0,0.0010854]
[1735442726530,1.2317181,95224.0,95223.0,0.0020854]
[1735442726735,1.2307181,95224.0,95223.0,0.0010854]
[1735442727140,1.2317181,95224.0,95223.0,0.0010854]
[1735442727767,1.2317181,95224.0,95223.0,0.06239252]
[1735442727976,1.2317181,95224.0,95223.0,0.14099252]
[1735442728405,1.2317181,95224.0,95223.0,0.14199252]
[1735442728623,1.2327181,95224.0,95223.0,0.14999252]
[1735442728831,1.2327181,95224.0,95223.0,0.14199252]
[1735442728832,1.46815131,95224.0,95223.0,0.14199252]
[1735442729232,1.46815131,95224.0,95223.0,0.14699252]
[1735442729432,1.46715131,95224.0,95223.0,0.14199252]
[1735442729603,1.2307181,95224.0,95223.0,0.14099252]
[1735442729817,1.1288481,95224.0,95223.0,0.14799252]
[1735442730254,0.5871701,95224.0,95223.0,0.14799252]
[1735442730592,1.6237161,95224.0,95223.0,0.14799252]
[1735442730750,1.3874541,95224.0,95223.0,0.14999252]
[1735442731093,1.3241251,95224.0,95223.0,0.14999252]
[1735442731211,1.3241251,95224.0,95223.0,0.14799252]
[1735442731633,1.3241251,95224.0,95223.0,0.15099252]
[1735442732470,1.1675731,95224.0,95223.0,0.15099252]
[1735442732874,1.15109303,95224.0,95223.0,0.15099252]
[1735442736207,1.1675723,95224.0,95223.0,0.15099252]
[1735442741659,1.1675723,95224.0,95223.0,0.07239252]
[1735442742914,1.15109303,95224.0,95223.0,0.07239252]
[1735442745893,1.16757236,95224.0,95223.0,0.07239252]
[1735442746715,3.78758536,95224.0,95223.0,0.07239252]
[1735442747302,3.78758536,95224.0,95223.0,0.06939252]
[1735442747741,3.78758536,95224.0,95223.0,0.0090854]
[1735442748478,3.78658536,95224.0,95223.0,0.0020854]
[1735442748846,3.78758536,95224.0,95223.0,0.0030854]
[1735442749065,3.78758536,95224.0,95223.0,8.54e-05]
[1735442749277,3.78758536,95224.0,95223.0,0.0010854]
[1735442749692,3.78858536,95224.0,95223.0,0.0040854]
[1735442752871,3.77210603,95224.0,95223.0,0.0040854]
[1735442756210,3.7885856,95224.0,95223.0,0.0040854]
[1735442757707,3.91285165,95224.0,95223.0,0.0040854]
[1735442758526,3.83275165,95224.0,95223.0,0.0010854]
[1735442758743,3.83275165,95224.0,95223.0,0.0030854]
[1735442758858,3.83275165,95224.0,95223.0,0.0010854]
[1735442759066,3.83275165,95224.0,95223.0,8.54e-05]
[1735442759268,3.83275165,95224.0,95223.0,0.0020854]
[1735442759514,3.48554165,95224.0,95223.0,0.0020854]
[1735442759725,3.42773965,95224.0,95223.0,0.0020854]
[1735442759950,2.74550365,95224.0,95223.0,0.0020854]
[1735442760141,2.63660665,95224.0,95223.0,0.0158234]
[1735442760289,2.59010665,95224.0,95223.0,0.0158234]
[1735442760500,2.01256765,95224.0,95223.0,0.0020854]
[1735442762427,1.39853865,95224.0,95223.0,0.06439252]
[1735442762654,1.39853865,95224.0,95223.0,0.06019432]
[1735442762863,1.38205908,95224.0,95223.0,0.06019432]
[1735442763440,1.61864499,95224.0,95223.0,0.06019432]
[1735442763852,1.56492899,95224.0,95223.0,0.06019432]
[1735442764303,1.92142699,95224.0,95223.0,0.06019432]
[1735442764585,1.68584108,95224.0,95223.0,0.06019432]
[1735442764831,1.68584108,95224.0,95223.0,0.06619432]
[1735442764832,1.68684108,95224.0,95223.0,0.06619432]
[1735442765046,1.68684108,95224.0,95223.0,0.06319432]
[1735442765447,1.68784108,95224.0,95223.0,0.06619432]
[1735442765615,1.61934808,95224.0,95223.0,0.06319432]
[1735442765829,1.61934808,95224.0,95223.0,0.06327972]
[1735442766010,1.63682735,95224.0,95223.0,0.06827972]
[1735442766233,1.63582735,95224.0,95223.0,0.06327972]
[1735442766437,1.63582735,95224.0,95223.0,0.06827972]
[1735442766637,1.63682735,95224.0,95223.0,0.06527972]
[1735442767137,1.63682735,95224.0,95223.0,0.0090854]
[1735442767559,1.63682735,95224.0,95223.0,0.0050854]
[1735442767838,1.63682735,95224.0,95223.0,0.0040854]
[1735442767839,1.63482735,95224.0,95223.0,0.0040854]
[1735442768036,1.63582735,95224.0,95223.0,0.0130854]
[1735442768988,1.63482735,95224.0,95223.0,0.0040854]
[1735442769391,1.63482735,95224.0,95223.0,0.0060854]
[1735442769571,1.63482735,95224.0,95223.0,0.06627972]
[1735442773019,1.61834808,95224.0,95223.0,0.06627972]
[1735442774186,1.85485257,95224.0,95223.0,0.06627972]
[1735442775675,1.61834808,95224.0,95223.0,0.06627972]
[1735442775992,1.63482754,95224.0,95223.0,0.06627972]
[1735442777751,1.87119896,95224.0,95223.0,0.06627972]
[1735442779510,1.63482754,95224.0,95223.0,0.06627972]
[1735442781805,1.44751376,95224.0,95223.0,0.06627972]
[1735442782228,1.68388518,95224.0,95223.0,0.06627972]
[1735442782862,0.73637072,95224.0,95223.0,0.06627972]
[1735442783116,0.4999993,95224.0,95223.0,0.06627972]
[1735442783695,1.3374973,95224.0,95223.0,0.06627972]
[1735442784314,1.35397672,95224.0,95223.0,0.06627972]
[1735442784804,1.32210372,95224.0,95223.0,0.06627972]
[1735442788800,1.32227452,95224.0,95223.0,0.06627972]
[1735442793106,1.55864594,95224.0,95223.0,0.06627972]
[1735442793613,1.54216652,95224.0,95223.0,0.06627972]
[1735442796121,1.3057951,95224.0,95223.0,0.06627972]
[1735442796638,1.32227443,95224.0,95223.0,0.06627972]
[1735442797382,1.55870526,95224.0,95223.0,0.06627972]
[1735442800566,1.32227443,95224.0,95223.0,0.06627972]
[1735442802936,1.3057951,95224.0,95223.0,0.06627972]
[1735442803184,1.0314391,95224.0,95223.0,0.06627972]
[1735442806046,1.04791843,95224.0,95223.0,0.06627972]
[1735442812867,1.0314391,95224.0,95223.0,0.06627972]
[1735442814429,1.04791843,95224.0,95223.0,0.06627972]
[1735442814917,0.78499553,95224.0,95223.0,0.06627972]
[1735442815123,0.54791913,95224.0,95223.0,0.06627972]
[1735442823698,0.01665013,95224.0,95223.0,0.06627972]
[1735442824119,1.04208713,95224.0,95223.0,0.06627972]
[1735442824341,1.2405288,95224.0,95223.0,0.06627972]
[1735442824602,0.9940168,95224.0,95223.0,0.06627972]
[1735442826115,1.01049609,95224.0,95223.0,0.06627972]
[1735442832747,0.9940168,95224.0,95223.0,0.06627972]
[1735442836047,1.01049613,95224.0,95223.0,0.06627972]
[1735442843002,0.9940168,95224.0,95223.0,0.06627972]
[1735442846167,1.01049604,95224.0,95223.0,0.06627972]
[1735442852841,0.9940168,95224.0,95223.0,0.06627972]
[1735442855674,0.9011728,95224.0,95223.0,0.06627972]
[1735442856122,0.91765204,95224.0,95223.0,0.06627972]
[1735442856446,0.87644304,95224.0,95223.0,0.06627972]
[1735442856675,0.81365304,95224.0,95223.0,0.06627972]
[1735442858600,0.81365304,95224.0,95223.0,0.06027972]
[1735442858829,0.81365304,95224.0,95223.0,0.06527972]
[1735442859065,0.81365304,95224.0,95223.0,0.06027972]
[1735442859287,0.81365304,95224.0,95223.0,0.06627972]
[1735442859512,0.81465304,95224.0,95223.0,0.06627972]
[1735442860522,0.81465304,95224.0,95223.0,0.06827972]
[1735442860974,0.81365304,95224.0,95223.0,0.06027972]
[1735442861195,0.81365304,95224.0,95223.0,0.06427972]
[1735442861421,0.81365304,95224.0,95223.0,0.06227972]
[1735442861891,0.81365304,95224.0,95223.0,0.06727972]
[1735442863192,0.7971738,95224.0,95223.0,0.06727972]
[1735442866240,0.81365304,95224.0,95223.0,0.06727972]
[1735442867733,0.01665004,95224.0,95223.0,0.27939394]
[1735442867934,0.01665004,95224.0,95223.0,0.48338026]
[1735442869612,0.01665004,95224.0,95223.0,0.48138026]
[1735442869820,0.01665004,95224.0,95223.0,0.48638026]
[1735442870408,0.01665004,95224.0,95223.0,0.47638026]
[1735442870612,0.01765004,95224.0,95223.0,0.49438026]
[1735442870781,0.01665004,95224.0,95223.0,0.48538026]
[1735442871145,0.01765004,95224.0,95223.0,0.49438026]
[1735442872877,0.0011708,95224.0,95223.0,0.49438026]
[1735442876249,0.017646,95224.0,95223.0,0.49438026]
[1735442880155,0.017646,95224.0,95223.0,0.48035354]
[1735442882945,0.0011708,95224.0,95223.0,0.48035354]
[1735442886192,0.01764708,95224.0,95223.0,0.48035354]
[1735442889487,0.01714708,95224.0,95223.0,0.48035354]
[1735442889733,0.01714708,95224.0,95223.0,0.58035354]
[1735442889985,0.01714708,95224.0,95223.0,0.64259839]
[1735442890428,0.01647628,95224.0,95223.0,0.63359839]
[1735442890833,0.01647628,95224.0,95223.0,0.64259839]
[1735442890834,0.01747628,95224.0,95223.0,0.64259839]
[1735442891339,0.01764708,95224.0,95223.0,0.63359839]
[1735442891550,0.01764708,95224.0,95223.0,0.64259839]
[1735442892931,0.0011708,95224.0,95223.0,0.64259839]
[1735442894611,0.5,95231.0,95230.0,0.45778182]
[1735442894816,0.0001708,95238.0,95237.0,0.33318182]
[1735442895115,0.0001708,95238.0,95237.0,0.56176814]
[1735442896347,0.01664234,95238.0,95237.0,0.56176814]
[1735442897314,0.01664234,95238.0,95237.0,0.57161496]
[1735442897533,0.01664234,95238.0,95237.0,0.70429493]
[1735442897896,0.5001708,95245.0,95244.0,0.45778182]
[1735442898102,0.5001708,95245.0,95244.0,0.56176814]
[1735442898305,0.0001708,95245.0,95244.0,0.56176814]
[1735442898509,0.0001708,95245.0,95244.0,0.63309763]
[1735442898725,0.01664137,95245.0,95244.0,0.6626381]
[1735442899172,0.01664137,95245.0,95244.0,0.6716381]
[1735442899773,0.00520042,95245.0,95244.0,0.6716381]
[1735442899980,0.015,95250.0,95245.0,0.99718182]
[1735442900220,0.015,95250.0,95245.0,1.20515446]
[1735442900416,0.0009375,95250.0,95249.0,0.45778182]
[1735442900573,0.0009375,95250.0,95249.0,0.56192082]
[1735442900794,0.0009375,95250.0,95249.0,0.5984827]
[1735442901175,0.0009375,95250.0,95249.0,0.60832952]
[1735442901372,0.0009375,95250.0,95249.0,0.73200949]
[1735442901574,0.01740576,95250.0,95249.0,0.72216267]
[1735442901937,0.0785,95294.0,95271.0,0.23318182]
[1735442902135,0.0785,95294.0,95271.0,0.41226814]
[1735442902675,0.262923,95279.0,95271.0,0.41226814]
[1735442902944,0.01663819,95272.0,95271.0,0.41226814]
[1735442903081,0.01663819,95272.0,95271.0,0.46821495]
[1735442903280,0.01663819,95272.0,95271.0,0.47721495]
[1735442903853,0.01663819,95272.0,95271.0,0.48621495]
[1735442905450,0.01663819,95272.0,95271.0,0.58621495]
[1735442905806,0.000171,95272.0,95271.0,0.58621495]
[1735442908632,0.000171,95272.0,95271.0,0.57721495]